Cogmind - Beta 17 @@@ ROGUE MODE // 2026.06.25 @ 20:48:51 // Winter2019/RPGLIKE Player: Toaster Result: Destroyed by S-27 Virus with Autogun Performance ------------- Evolutions (5) 2500 Regions Visited (6) 1200 Robots Destroyed (108) 540 Value Destroyed (3975) 3975 Prototype IDs (25) 500 Alien Tech Used (0) 0 Bonus (10288) 10288 TOTAL SCORE: 19003 Bonus ------- High Alert Combat Kills 88 Prayed to X0-1V1 5000 Major X0-1V1 Interference 5200 Cogmind --------- Core Integrity 0/1500 Matter 690/700 Energy 375/455 System Corruption 0% Temperature Cool (0) Movement Treading (165) Location -5/Factory Parts ------- > --- POWER (2) -------- Nuclear Core (fused) Neutrino Core > --- PROPULSION (4) --- Medium Treads (fused) Armored Medium Treads (fused) Light Armored Exoskeleton (fused) > --- UTILITY (4) ------ Coolant Injector Experimental Utility Shielding (fused) Self-contained Transmogrifier X0-1V1's Piety Tracker > --- WEAPON (4) ------- Proton Cannon (fused) Heavy Ion Cannon (fused) Heavy Ion Cannon (fused) Cooled Phase Cannon (fused) > --- INVENTORY (1) ---- Long-range Proton Cannon Peak State ------------ > --- POWER ------------ Nuclear Core Neutrino Core > --- PROPULSION ------- Armored Medium Treads Improved Carbon-fiber Leg Flexi-carbon Leg Thunder Leg > --- UTILITY ---------- Coolant Injector Advanced Signal Interpreter Self-contained Transmogrifier X0-1V1's Piety Tracker > --- WEAPON ----------- Variable Charge Gun Heavy Ion Cannon Heavy Ion Cannon Cooled Plasma Cannon Cooled Phase Cannon > --- INVENTORY -------- (None) [Rating: 89] Favorites ----------- Power Light Nuclear Core Engine Cooled Ion Engine Power Core Light Nuclear Core Propulsion Aluminum Leg Treads Armored Medium Treads Leg Aluminum Leg Hover Unit Gravmag System Utility X0-1V1's Piety Tracker Device X0-1V1's Piety Tracker Processor Advanced Signal Interpreter Protection Reflective Plating Weapon Beam Cannon Energy Gun Subdweller Laser Energy Cannon Beam Cannon Ballistic Gun Subdweller Machine Gun Ballistic Cannon Gauss Cannon Launcher Heavy Shock Bomb Launcher Special Weapon Flamer Impact Weapon Hammer Slashing Weapon Particle Cleaver Piercing Weapon Makeshift Spear Build | -11 -10 -10 -9 -9 -6 -5 ------- Run | Yrd Mat Sub Rec Scr Fac Fac Slots Evolved 10 | 3 4 1 1 . 1 . Power . | . . . . . . . Propulsion 4 | 1 1 . 1 . 1 . Utility 3 | 1 1 1 . . . . Weapon 3 | 1 2 . . . . . Parts Attached 49 | 5 10 15 2 . 12 5 Power 5 | 1 2 . . . 1 1 Engine 3 | 1 1 . . . 1 . Core 2 | . 1 . . . . 1 Reactor . | . . . . . . . Propulsion 8 | 2 1 . . . 5 . Treads . | . . . . . . . Leg 7 | 2 1 . . . 4 . Wheel . | . . . . . . . Hover 1 | . . . . . 1 . Flight . | . . . . . . . Utility 14 | . 3 4 1 . 5 1 Device 6 | . 2 1 . . 3 . Storage . | . . . . . . . Processor 2 | . 1 . . . . 1 Hackware . | . . . . . . . Protection 6 | . . 3 1 . 2 . Artifact . | . . . . . . . Weapon 22 | 2 4 11 1 . 1 3 Energy Gun 9 | 2 . 4 1 . . 2 Energy Cannon 6 | . 4 2 . . . . Ballistic Gun 1 | . . 1 . . . . Ballistic Cannon 1 | . . . . . . 1 Launcher . | . . . . . . . Special Weapon 1 | . . . . . 1 . Impact Weapon 2 | . . 2 . . . . Slashing Weapon 1 | . . 1 . . . . Piercing Weapon 1 | . . 1 . . . . Special Melee Weapon . | . . . . . . . Unidentified Prototypes 3 | . 1 1 . . 1 . Parts Lost 2 | . . . . . 2 . Power 1 | . . . . . 1 . Propulsion . | . . . . . . . Utility . | . . . . . . . Weapon 1 | . . . . . 1 . Highest Loss Streak 1 | . . . . . 1 . To Critical Strikes . | . . . . . . . Average Backups . | . . . . . . . Power . | . . . . . . . Propulsion . | . . . . . . . Utility . | . . . . . . . Weapon . | . . . . . . . Tool/Special . | . . . . . . . Unused Backups 1 | . . . . . . 1 Power . | . . . . . . . Propulsion . | . . . . . . . Utility . | . . . . . . . Weapon 1 | . . . . . . 1 Tool/Special . | . . . . . . . Average Slot Usage (%) 87 | . 88 76 94 92 97 94 Engine 4 | . 9 1 7 6 4 . Core 7 | . 3 7 7 7 9 10 Leg 23 | . 27 22 22 23 24 17 Device 15 | . 15 11 15 15 21 22 Protection 6 | . . 7 15 15 5 1 Energy Gun 3 | . 1 6 2 . . 3 Energy Cannon 17 | . 28 11 23 23 16 23 Slashing Weapon 2 | . . 2 . . 9 . Peak Build Rating 89 | 5 24 55 61 62 87 89 Average Rating 46 | 3 13 31 55 60 77 82 On Entrance 40 | . 5 24 55 61 62 75 Avg Prop Armor Cover (%) 7 | . . . . . 5 7 Naked Turns . | . . . . . . . Heaviest Build 66 | 6 19 52 55 57 63 66 Greatest Support 83 | 25 35 35 41 41 83 68 Greatest Overweight (x) 1 | . . 1 1 1 1 1 Average Overweight (x) . | . . . 1 1 . . Largest Inventory Capacity 1 | 1 1 1 1 1 1 1 Average Capacity 1 | 1 1 1 1 1 1 1 Most Carried 1 | . 1 1 1 . 1 1 Average Carried . | . . . . . . . Final Capacity 1 | 1 1 1 1 1 1 1 Final Carried 1 | . . 1 . . . 1 Transmogrified Parts 43 | . . 6 9 3 17 8 Integrity Recovered 330 | . . 93 8 . 152 77 Class Distribution -------------------- 20% | Tank 20% | Gunner 19% | Gladiator 15% | Mutant 14% | Subdweller-Gunner 3% | Scavenger-Gladiator 3% | Skirmisher Dominant Class ---------------- Mutant | -10/Materials Subdweller-Gunner | -10/Subcaves Tank | -9/Recycling Tank | -9/Scraptown Gladiator | -6/Factory Gunner | -5/Factory Resources | -11 -10 -10 -9 -9 -6 -5 ----------- Run | Yrd Mat Sub Rec Scr Fac Fac Matter Collected 1875 | 250 107 501 374 . 361 282 Remotely . | . . . . . . . Salvage Created 3843 | . 715 778 626 . 1432 292 Parts 272 | . 48 56 61 . 70 37 Haulers Intercepted 2 | . 2 . . . . . Recyclers Shooed 3 | . . . 1 . 2 . Parts Field Recycled . | . . . . . . . Retrieved Matter . | . . . . . . . Parts Self-Destructed 29 | . . 29 . . . . Prevented . | . . . . . . . Parts Restored . | . . . . . . . Kills | -11 -10 -10 -9 -9 -6 -5 ------- Run | Yrd Mat Sub Rec Scr Fac Fac Combat Hostiles Destroyed 93 | . 21 24 15 . 27 6 Melee 16 | . . 4 . . 12 . Guns 1 | . . 1 . . . . Cannons 67 | . 20 19 14 . 8 6 AOE 6 | . . . 1 . 5 . Classes Destroyed 17 | . 4 5 1 . 6 1 Worker 1 | . . . . . . 1 Hauler 2 | . 2 . . . . . Recycler 1 | . . . 1 . . . Operator 3 | . . . . . 3 . Turret 2 | . . 2 . . . . Watcher 7 | . 3 . . . 2 2 Swarmer 16 | . 6 6 . . 4 . Grunt 35 | . 15 3 5 . 12 . Brawler 8 | . . 4 3 . 1 . Duelist 1 | . . . . . 1 . Sentry 13 | . . 1 7 . 1 4 Hunter 3 | . . . . . 1 2 Programmer 4 | . . . . . 4 . Cobbler 1 | . . 1 . . . . Subdweller 10 | . . 10 . . . . Assembled 1 | . . . . . 1 . Fireman 2 | . . . . . 2 . Best Kill Streak 8 | . 5 6 5 . 8 4 Combat Bots Only 6 | . 3 4 5 . 6 3 Max Kills in Single Turn 3 | . 1 1 2 . 3 1 Gunslinging . | . . . . . . . Exploded 3 | . . . 1 . 3 . Melee 1 | . . 1 . . 1 . Uniques/NPCs Destroyed . | . . . . . . . Combat | -11 -10 -10 -9 -9 -6 -5 -------- Run | Yrd Mat Sub Rec Scr Fac Fac Hostile Shots Fired 488 | . 122 125 37 . 165 39 Missed 160 | . 45 42 14 . 47 12 Hits 328 | . 77 83 23 . 118 27 Melee 27 | . . 15 5 . 5 2 Projectile 301 | . 77 68 18 . 113 25 AOE 3 | . . 3 . . . . Critical Strikes 12 | . . 4 3 . 2 3 Part Disruptions 6 | . . . . . 6 . Damage Taken 5156 | . 669 1557 400 . 1983 547 Core 3904 | . 544 1103 274 . 1546 437 Absorbed by Shields . | . . . . . . . Redirected to Core 3203 | . 398 874 203 . 1329 399 Ignored by Resistances 34 | . . . 34 . . . Core Remaining (%) 71 | 100 . . . 100 15 . Volleys Fired 223 | . 59 87 20 . 41 16 Largest 5 | . 2 4 4 . 3 5 Hottest 430 | . 120 240 281 . 210 430 Shots Fired 524 | . 118 214 62 . 77 53 Gun 54 | . . 51 1 . . 2 Cannon 458 | . 118 163 61 . 65 51 Launcher 12 | . . . . . 12 . Special . | . . . . . . . Kinetic 1 | . . . . . . 1 Thermal 457 | . 118 214 17 . 65 43 Explosive . | . . . . . . . Electromagnetic 66 | . . . 45 . 12 9 Robot Hit Streak 42 | . 12 42 14 . 7 14 Robot Miss Streak 3 | . 3 2 2 . 3 2 Penetration Max . | . . . . . . . Secondary Targets . | . . . . . . . Shots Hit Robots 389 | . 79 151 43 . 82 34 Core Hits 158 | . 27 42 24 . 48 17 Critical Kills 2 | . . . . . 1 1 Critical Parts Destroyed . | . . . . . . . Critical Strikes 8 | . . 1 . . 6 1 Meltdown 2 | . . . . . 1 1 Sever 6 | . . 1 . . 5 . Melee Attacks 61 | . . 23 . . 38 . Impact 11 | . . 11 . . . . Slashing 48 | . . 10 . . 38 . Piercing 2 | . . 2 . . . . Sneak Attacks 2 | . . 1 . . 1 . Combat Hostiles 1 | . . . . . 1 . Follow-up Attacks 6 | . . 3 . . 3 . Damage Inflicted 10846 | . 1405 3082 1075 . 4262 1022 Guns 515 | . . 515 . . . . Cannons 6562 | . 1400 2011 960 . 1169 1022 Explosions 1064 | . . . 112 . 952 . Melee 2690 | . . 556 . . 2134 . Ramming 15 | . 5 . 3 . 7 . Kinetic . | . . . . . . . Thermal 6418 | . 1400 2526 296 . 1370 826 Explosive 242 | . . . . . 242 . Electromagnetic 1481 | . . . 776 . 509 196 Impact 227 | . . 227 . . . . Slashing 2437 | . . 303 . . 2134 . Piercing 26 | . . 26 . . . . Highest Corruption 32 | . 1 6 32 . 1 . Average Corruption 5 | . 1 5 20 . 1 . Corruption Purged . | . . . . . . . Corruption Blocked . | . . . . . . . Effects 21 | . 3 8 7 . 3 . Message Errors 4 | . 1 1 2 . . . Matter Fused 8 | . 2 3 3 . . . Heat Flow Errors 3 | . . 2 . . 1 . Energy Discharges 2 | . . . 1 . 1 . Parts Rejected 1 | . . . . . 1 . Data Loss (minor) 3 | . . 2 1 . . . Overload Shots 3 | . . . . . 1 2 Overflow Damage 349 | . 21 83 . . 222 23 Projectiles 139 | . 21 83 . . 12 23 Explosions 15 | . . . . . 15 . Melee 195 | . . . . . 195 . Knockbacks . | . . . . . . . Impact . | . . . . . . . Kinetic . | . . . . . . . Secondary . | . . . . . . . Self-Inflicted Damage 231 | . . . 64 . 167 . Shots 6 | . . . 2 . 4 . Rammed . | . . . . . . . Targets Rammed 5 | . 2 . 2 . 1 . Kicked 5 | . 2 . 2 . 1 . Crushed . | . . . . . . . Highest Temperature 384 | . 72 253 384 . 246 165 Average Temperature 62 | . 19 53 123 . 73 40 Received Heat Transfer 1489 | . 254 264 114 . 785 72 Siege Activations . | . . . . . . . Martial Activations . | . . . . . . . Shielding Activations . | . . . . . . . Robots Disrupted 1 | . . . 1 . . . Combat Hostiles 1 | . . . 1 . . . Robots Corrupted 1 | . . . . . 1 . Combat Hostiles 1 | . . . . . 1 . Parts Fried 4 | . . . 2 . 2 . Impact Corruptions . | . . . . . . . Robots Melted 3 | . 1 . . . 1 1 Combat Hostiles 2 | . 1 . . . 1 . Parts Melted 15 | . 4 6 . . 3 2 Heat Transferred 10743 | . 2960 4362 483 . 1902 1036 Parts Sabotaged . | . . . . . . . Parts Stolen . | . . . . . . . Parts Stripped . | . . . . . . . Power Chain Reactions 4 | . . . 2 . 2 . Alert | -11 -10 -10 -9 -9 -6 -5 ------- Run | Yrd Mat Sub Rec Scr Fac Fac Maximum Alert Level 2 | . 1 . 1 . 2 1 Low Security (%) 67 | 100 73 . 51 . 82 37 Level 1 30 | . 26 . 48 . 12 62 Level 2 2 | . . . . . 5 . Level 3 . | . . . . . . . Level 4 . | . . . . . . . Level 5 . | . . . . . . . High Security . | . . . . . . . Max Security . | . . . . . . . Peak Influence 668 | . 264 . 331 . 668 326 Initial 326 | . . . 27 . . 326 Average 146 | . 153 . 142 . 121 221 Influence Increases 2874 | . 636 395 613 . 1029 201 Destroy 0b10 Robot/C 1680 | . 420 320 300 . 520 120 Destroy 0b10 Robot/NC 70 | . 25 . 5 . 25 15 Destroy Leader 268 | . 90 . . . 124 54 Successful Hack 60 | . 26 . 13 . 21 . Disable Machine 120 | . 15 . 15 . 90 . Destroy Structure 87 | . . . 16 . 59 12 Lose Combat Pursuer 195 | . 60 75 . . 60 . Miscellaneous 394 | . . . 264 . 130 . Influence Decreases 2641 | . 444 530 431 239 362 635 Entered New Map 703 | . . 93 30 239 . 341 Time Decay 1918 | . 444 437 401 . 342 294 Lost Part 20 | . . . . . 20 . Squads Dispatched 15 | . 4 . 1 . 9 1 Investigation 3 | . 1 . . . 2 . Extermination 4 | . . . . . 4 . Reinforcement 6 | . 3 . . . 2 1 Assault 2 | . . . 1 . 1 . Garrison . | . . . . . . . Intercept . | . . . . . . . Searches Triggered . | . . . . . . . Construction Impeded . | . . . . . . . Haulers Reinforced . | . . . . . . . Active Scanning Responses . | . . . . . . . Cargo Convoy Interrupts . | . . . . . . . Stealth | -11 -10 -10 -9 -9 -6 -5 --------- Run | Yrd Mat Sub Rec Scr Fac Fac Distress Signals 4 | . 3 . . . 1 . Communications Jammed . | . . . . . . . Distress Signals . | . . . . . . . Times Spotted 141 | . 30 33 15 . 51 12 Peak Tracking Total 10 | . 5 4 5 . 10 3 Tactical Retreats 9 | . 2 2 . . 5 . Traps | -11 -10 -10 -9 -9 -6 -5 ------- Run | Yrd Mat Sub Rec Scr Fac Fac Traps Triggered 7 | . 1 2 . . 3 1 Indirectly 1 | . . . . . 1 . Trap Hack Attempts . | . . . . . . . Triggered . | . . . . . . . Disarmed . | . . . . . . . Reprogrammed . | . . . . . . . Reused . | . . . . . . . Traps Extracted . | . . . . . . . Installed . | . . . . . . . Triggered . | . . . . . . . Machines | -11 -10 -10 -9 -9 -6 -5 ---------- Run | Yrd Mat Sub Rec Scr Fac Fac Machines Disabled 15 | . 1 7 1 . 6 . Max in Single Turn 2 | . 1 2 1 . 2 . Machines Repaired . | . . . . . . . Machines Dismantled . | . . . . . . . Machines Sabotaged . | . . . . . . . Overloaded Fab Kills . | . . . . . . . Hacking | -11 -10 -10 -9 -9 -6 -5 --------- Run | Yrd Mat Sub Rec Scr Fac Fac Machines Accessed 17 | . 5 2 5 . 4 1 Terminals 15 | . 5 . 5 . 4 1 Fabricators . | . . . . . . . Repair Stations . | . . . . . . . Recycling Units . | . . . . . . . Scanalyzers . | . . . . . . . Garrison Access . | . . . . . . . Total Hacks 41 | . 9 6 12 . 13 1 Successful 24 | . 5 6 5 . 8 . Failed 17 | . 4 . 7 . 5 1 Catastrophic 2 | . . . . . 1 1 Database Lockouts . | . . . . . . . Manual 25 | . 6 . 9 . 9 1 Terminals 35 | . 9 . 12 . 13 1 Fabricators . | . . . . . . . Repair Stations . | . . . . . . . Recycling Units . | . . . . . . . Scanalyzers . | . . . . . . . Garrison Access . | . . . . . . . Terminal Hacks 14 | . 2 6 1 . 5 . Record 6 | . . 5 . . 1 . Prototype ID Bank 1 | . 1 . . . . . Branch Access Points 1 | . . . . . 1 . Terminal Index 2 | . . . . . 2 . Alert Level 2 | . . . 1 . 1 . Zone Layout 1 | . 1 . . . . . Proto ID Catalog 1 | . . 1 . . . . Fabricator Hacks . | . . . . . . . Repair Station Hacks . | . . . . . . . Recycling Unit Hacks . | . . . . . . . Scanalyzer . | . . . . . . . Garrison Access Hacks . | . . . . . . . Unauthorized Hacks 10 | . 3 . 4 . 3 . Terminals 10 | . 3 . 4 . 3 . Botnet 10 | . 3 . 4 . 3 . Fabricators . | . . . . . . . Repair Stations . | . . . . . . . Recycling Units . | . . . . . . . Scanalyzers . | . . . . . . . Garrison Access . | . . . . . . . Data Cores Recovered 2 | . . . . . 2 . Used 1 | . . . . . 1 . Hacking Detections 9 | . 1 . 3 . 4 1 Full Trace Events . | . . . . . . . Feedback Events . | . . . . . . . Feedback Blocked . | . . . . . . . Robot Schematics Acquired . | . . . . . . . Robots Built . | . . . . . . . Authchips . | . . . . . . . Time . | . . . . . . . Total Robot Build Rating . | . . . . . . . Part Schematics Acquired . | . . . . . . . Parts Built . | . . . . . . . Authchips . | . . . . . . . Time . | . . . . . . . Total Part Build Rating . | . . . . . . . Part Studies Acquired . | . . . . . . . Parts Repaired . | . . . . . . . Time . | . . . . . . . Parts Recycled . | . . . . . . . Recycled Matter . | . . . . . . . Retrieved Matter . | . . . . . . . Retrieved Components . | . . . . . . . Parts Scanalyzed . | . . . . . . . Part Schematics Acquired . | . . . . . . . Parts Damaged . | . . . . . . . Bothacking | -11 -10 -10 -9 -9 -6 -5 ------------ Run | Yrd Mat Sub Rec Scr Fac Fac Used RIF Installer . | . . . . . . . Robots Hacked . | . . . . . . . Non-combat . | . . . . . . . Combat . | . . . . . . . Robot Hacks Applied . | . . . . . . . Relay Couplers Released . | . . . . . . . Fabnet Peak Effective % . | . . . . . . . Robots Rewired . | . . . . . . . Allies Hacked . | . . . . . . . Hacks Repelled . | . . . . . . . Allies | -11 -10 -10 -9 -9 -6 -5 -------- Run | Yrd Mat Sub Rec Scr Fac Fac Total Allies . | . . . . . . . Largest Group . | . . . . . . . Highest-Rated Group . | . . . . . . . Highest-Rated Ally . | . . . . . . . Total Orders . | . . . . . . . Ally Attacks . | . . . . . . . Total Damage . | . . . . . . . Kills . | . . . . . . . Allies Corrupted . | . . . . . . . Allies Melted . | . . . . . . . X0-1V1 Amusement Gains 119 | . 10 4 10 4 82 9 Good Acts 28 | . 6 11 1 . 6 4 Bad Acts 41 | . 5 14 13 . 8 1 Intel | -11 -10 -10 -9 -9 -6 -5 ------- Run | Yrd Mat Sub Rec Scr Fac Fac Active Infowar (turns) 787 | . 189 . . . 598 . Sensors 303 | . . . . . 303 . T.N.C. 189 | . 189 . . . . . Machine Analysis 251 | . . . . . 251 . ECM 44 | . . . . . 44 . Robot Analysis Total . | . . . . . . . Derelict Logs Recovered 2 | . . 2 . . . . Drone Launches . | . . . . . . . Drone Recoveries . | . . . . . . . Exploration | -11 -10 -10 -9 -9 -6 -5 ------------- Run | Yrd Mat Sub Rec Scr Fac Fac Turns Passed 8231 | 68 1300 3161 1107 186 1755 654 Spaces Moved 4914 | 59 852 1863 518 99 1103 420 Core 14 | 14 . . . . . . Treads . | . . . . . . . Legs 4900 | 45 852 1863 518 99 1103 420 Wheels . | . . . . . . . Hover . | . . . . . . . Flight . | . . . . . . . Fastest Speed 50 | 50 120 120 186 186 100 120 Average Speed 138 | 103 120 142 186 189 124 136 Slowest Speed 250 | 120 120 190 190 190 190 250 Overloaded Moves . | . . . . . . . Propulsion Burnouts . | . . . . . . . Robots Hopped . | . . . . . . . Potential Cave-ins . | . . . . . . . Cave-ins Triggered . | . . . . . . . Exploration Rate (%) 46 | 3 90 82 93 15 29 11 Regions Visited 6 Branch Regions 3 Pre-discovered Areas 2 | . . 2 . . . . Known Exits Taken . | . . . . . . . Unknown Exits Taken 6 | 1 1 1 1 1 1 . Scrap Searched 8 | . . 8 . . . . Spaces Dug 6 | . . 1 . . 2 3 Terrain Destroyed 84 | . . 3 18 . 56 7 Melee 1 | . . . . . 1 . Projectile 20 | . . 3 . . 10 7 AOE 63 | . . . 18 . 45 . Terrain Rammed . | . . . . . . . Walls Destroyed . | . . . . . . . Machines Disabled . | . . . . . . . Actions | -11 -10 -10 -9 -9 -6 -5 --------- Run | Yrd Mat Sub Rec Scr Fac Fac Total 5797 | 63 1010 2188 609 98 1363 466 Wait 343 | . 48 108 33 . 143 11 Move 4909 | 58 851 1862 517 98 1103 420 Hop . | . . . . . . . Pick Up 14 | . 1 8 1 . 2 2 Fast Attach 40 | 5 9 10 1 . 11 4 Attach 10 | . 1 4 2 . 2 1 Detach 16 | . 4 1 1 . 9 1 Swap 5 | . . 5 . . . . Drop 24 | . 4 16 . . 2 2 Fire 223 | . 59 87 20 . 41 16 Melee 50 | . . 18 . . 32 . Ram . | . . . . . . . Kick 4 | . 2 . 2 . . . Crush . | . . . . . . . Escape Stasis 1 | . . . . . 1 . Rewire . | . . . . . . . Trap . | . . . . . . . Miscellaneous 158 | . 31 69 32 . 17 9 Route ------- -11/Scrapyard -10/Materials (discovered 5 exits: [*Mat x3] / Min / *Sub) -10/Subcaves (discovered 3 exits: [*Mat x2] / *Rec) -9/Recycling (discovered 2 exits: [*Fac] / [*Scr]) -9/Scraptown -6/Factory (discovered 3 exits: *Fac / Low x2) -5/Factory (discovered 3 exits: *Fac x2 / Upp) History --------- Turn | Location | Event 1 | -11/Scrapyard | Upgraded with Propulsion slot (x1) 1 | -11/Scrapyard | Upgraded with Utility slot (x1) 1 | -11/Scrapyard | Upgraded with Weapon slot (x1) 2 | -11/Scrapyard | Met Revision 17 9 | -11/Scrapyard | Discovered new exit (range 15) 69 | -11/Scrapyard | Entered Materials 301 | -10/Materials | Build established: Mutant 327 | -10/Materials | Discovered new exit (range 6) 687 | -10/Materials | Discovered new exit (range 8) 694 | -10/Materials | Prayed at D.C.S.S. Altar Unit 694 | -10/Materials | Reached level 2 694 | -10/Materials | Reached level 3 765 | -10/Materials | Discovered new exit (range 14) 969 | -10/Materials | Reached level 4 1108 | -10/Materials | Upgraded with Propulsion slot (x1) 1108 | -10/Materials | Upgraded with Weapon slot (x1) 1110 | -10/Materials | Upgraded with Utility slot (x1) 1110 | -10/Materials | Upgraded with Weapon slot (x1) 1235 | -10/Materials | Discovered new exit (range 8) 1348 | -10/Materials | X0-1V1 mutated your Utility slot to Power slot 1349 | -10/Materials | X0-1V1 activates XOMVISION 1353 | -10/Materials | X0-1V1 foreshadows a heat wave 1354 | -10/Materials | Identified exit to Mines 1354 | -10/Materials | X0-1V1 revealed exit location to -10/Mines 1359 | -10/Materials | X0-1V1 announced a LAN party 1369 | -10/Materials | Entered Subcaves 1371 | -10/Subcaves | Reached level 5 1375 | -10/Subcaves | X0-1V1 whisked you away to safety 1376 | -10/Subcaves | A swath of the cavern ceiling suddenly collapsed 1390 | -10/Subcaves | X0-1V1 sent you into danger 1409 | -10/Subcaves | Build established: Gunner 1416 | -10/Subcaves | Discovered new exit (range 8) 1425 | -10/Subcaves | Ambushed by Subdweller buried in earth 1440 | -10/Subcaves | Core integrity fell below 50% 1539 | -10/Subcaves | Shifting Twisted Machinery released Sub. Monowheel 1541 | -10/Subcaves | Shifting Twisted Machinery released Mak. Light Armor Plating 1544 | -10/Subcaves | Upgraded with Utility slot (x1) 1591 | -10/Subcaves | Discovered new exit (range 10) 1620 | -10/Subcaves | X0-1V1 mutated your Weapon slot to Propulsion slot 1686 | -10/Subcaves | Discovered new exit (range 8) 1755 | -10/Subcaves | Visited Clippyterm 1759 | -10/Subcaves | Learned Research security intel 2001 | -10/Subcaves | Learned location of Zion (-6) 2019 | -10/Subcaves | Shifting Twisted Machinery released Sub. Laser 2031 | -10/Subcaves | Shifting Twisted Machinery released Scrap Shield 2066 | -10/Subcaves | Shifting Twisted Machinery released Riot Gun 2316 | -10/Subcaves | Build established: Subdweller-Gunner 2378 | -10/Subcaves | Shifting Twisted Machinery released Spk. Treads 2415 | -10/Subcaves | X0-1V1 sent hostile G-34 Mercenary (x3) 3178 | -10/Subcaves | Disturbed a concealed Subdweller 3265 | -10/Subcaves | Disturbed a concealed Subdweller 3417 | -10/Subcaves | Reached level 6 3501 | -10/Subcaves | X0-1V1 mutated your Propulsion slot to Weapon slot 3619 | -10/Subcaves | X0-1V1 mutated your Propulsion slot to Utility slot 3631 | -10/Subcaves | X0-1V1 sent hostile B-36 Bruiser (x4) 3675 | -10/Subcaves | Build established: Gladiator 3941 | -10/Subcaves | Visited 4L-MR0's lab 3955 | -10/Subcaves | Found Prototype Device 3955 | -10/Subcaves | Identified Sfc. Transmogrifier 4052 | -10/Subcaves | Build established: Scavenger-Gladiator 4209 | -10/Subcaves | Found Powered Cannon 4211 | -10/Subcaves | X0-1V1 sent hostile S-10 Pest (x3) 4211 | -10/Subcaves | Attached Powered Cannon, gained temporary slot: Power 4530 | -10/Subcaves | Entered Recycling 4608 | -9/Recycling | Reached level 7 4610 | -9/Recycling | Build established: Tank 4623 | -9/Recycling | Upgraded with Propulsion slot (x1) 4703 | -9/Recycling | X0-1V1 sent hostile B-36 Bruiser (x3) 4970 | -9/Recycling | Discovered new exit (range 15) 5100 | -9/Recycling | X0-1V1 added 0b10 threat records associated with you (major) 5289 | -9/Recycling | X0-1V1 sent hostile G-34 Mercenary (x5) 5289 | -9/Recycling | Reached level 8 5490 | -9/Recycling | System corruption reached 10% 5587 | -9/Recycling | Scanned before Scraplab entrance 5592 | -9/Recycling | System corruption reached 30% 5615 | -9/Recycling | Entered Scraplab 5632 | -9/Recycling | Discovered new exit (range 3) 5637 | -9/Recycling | Entered Scraptown 5637 | -9/Scraptown | System corruption cleaned by C-Scrubber 5658 | -9/Scraptown | Heard Great Nut preacher, LISTEN AND RECITE! 5810 | -9/Scraptown | Discovered new exit (range 5) 5823 | -9/Scraptown | Entered Factory 5825 | -6/Factory | Reached level 9 6195 | -6/Factory | Assembled infested Garrison Access 6351 | -6/Factory | Build established: Gladiator 6368 | -6/Factory | Upgraded with Propulsion slot (x1) 6393 | -6/Factory | X0-1V1 vaporized surrounding terrain (radius 23) 6393 | -6/Factory | Reached level 10 6504 | -6/Factory | Identified exit to Lower Caves 6707 | -6/Factory | X0-1V1 sent hostile Fireman (x3) 6718 | -6/Factory | X0-1V1 whisked you away to safety 6976 | -6/Factory | X0-1V1 announced a LAN party 7006 | -6/Factory | Core integrity fell below 50% 7006 | -6/Factory | Reached level 11 7269 | -6/Factory | X0-1V1 added 0b10 threat records associated with you (minor) 7467 | -6/Factory | Build established: Gunner 7488 | -6/Factory | Core integrity fell below 20% 7492 | -6/Factory | Reached level 12 7503 | -6/Factory | Weapon slot count temporarily expanded by X0-1V1 (+1) 7571 | -6/Factory | Discovered new exit (range 5) 7573 | -6/Factory | First assault squad dispatched 7578 | -6/Factory | Entered another Factory area 7579 | -5/Factory | Core integrity fell below 50% 7579 | -5/Factory | Core integrity fell below 20% 7580 | -5/Factory | Reached level 13 7660 | -5/Factory | Identified exit to Factory 7660 | -5/Factory | X0-1V1 revealed exit location to -4/Factory 7805 | -5/Factory | Identified exit to Upper Caves 7805 | -5/Factory | X0-1V1 revealed exit location to -5/Upper Caves 8140 | -5/Factory | Discovered exit to Factory (range 8) 8208 | -5/Factory | Reached level 14 8232 | -5/Factory | Destroyed by S-27 Virus with Autogun Last Messages --------------- 08204_ Penetrated by Slug. 08204_ K-01 Serf destroyed. 08204_ Destroyed Imp. Medium Armor Plating. 08205_ Extracted 17 matter. 08207_ Penetrated by Slug. 08208_ Destroyed Wave Gun. 08208_ Reached level 14. 08208_ Y-64 Sentinel destroyed. 08210_ Penetrated by Slug. 08211_ H-66 Slayer destroyed. 08215_ Acquired 13 matter. 08222_ R-10 Processor collects Targeting Computer. 08225_ Triggered Ambush Trap. 08225_ B-60 Warrior emerges from a hatch in the floor. 08225_ G-50 Soldier emerges from a hatch in the floor. 08225_ S-27 Virus emerges from a hatch in the floor. 08228_ Knocked back. 08229_ R-10 Processor collects Corrupted Flexi-carbon Leg. 08231_ U-05 Engineer lays Concrete. 08232_ X0-1V1 snickers! Map ----- +----------------------------------------------------+ | ??????????????????????? #??# """" # # | | ??????????????????????# #?## """" # # | | ?????????????????+????# #?#" """" # # | | ??????????????????????+ #?## """" ! # # | | ??????????????????????# #??# """" # # | | ??????????????????????# #??# """" # # | | ??????????????????????# #??# # # | | ??????????????????????# #??# """" ! # # | | ??????????????????????# #??# """" # # | | ??????????????????????+ #??# """" # # | | ??????????????????????# #??# """" + # | | ??????????????????????# #??# """" # # | | ??????????????????????# #??# """" # # | | ??????????????????????# #??# """" # # | | ?????????????????????## #??# # # | | ?????????????????????# # #?########### # | | ?????????????????????# # #?#" ## # | | ?????????????????????# * #+#### """" ## # | | ?????????????????????# # # """" |## # | | ?????????????????????# !< # # """" # | | ?????????????????????# * = # # """" # | | ?????????????????????# t= + # + | | ???????????????????? # # # ! # | | ???????????????????" # t # # """# * | | ?????????????????" " ###s g ### #!! T"###### | | ?????????????????" "???# @b #?# #!! """#????? | | ?????????????????" ????# u#?# " #????? | | ???????????????????????# #?##+###########????? | | ???????????????????????# #???????????????????? | | ???????????????????????#[!%! #???????????????????? | | ???????????????????????#%![ #???????????????????? | | ???????????????????????!=! ???????????????????? | | ???????????????????????=[ #??????????????????? | | ??????????????????????#R #??????????????????? | | ??????????????????????+ +??????????????????? | | ??????????????????????# #??????????????????? | | ??????????????????????#! #??????????????????? | | ??????????????????????# #??????????????????? | | ??????????????????????### ###??????????????????? | | ????????????????????????? #????????????????????? | | ????????????????????????? ?????????????????????? | | ?????????????????????????????????????????????????? | | ?????????????????????????????????????????????????? | | ?????????????????????????????????????????????????? | | ?????????????????????????????????????????????????? | | ?????????????????????????????????????????????????? | | ?????????????????????????????????????????????????? | | ?????????????????????????????????????????????????? | | ?????????????????????????????????????????????????? | | ?????????????????????????????????????????????????? | +----------------------------------------------------+ Best States ------------- Heat Dissipation 103 Coolant Potential 65 Energy Generation 28 Energy Capacity 1340 Matter Stores 800 Matter Capacity 800 Sight Range 22 Robot Scan Range 18 Terrain Scan Density 10 ECM Strength 2 Armor Coverage 800 Resistance: TH 10 Resistance: EM 25 Utility Shielding 90 Melee Speed Boost 20 Evasion (%) 70 Melee Accuracy 5 Recoil Reduction 2 Item Schematics ----------------- None Robot Schematics ------------------ None Fabricated ------------ Nothing Repaired ---------- Nothing Studied --------- None Alien Tech Used ----------------- None Achievements -------------- Chaos Is Inevitable Challenges ------------ None RPGLIKE | -11 -10 -10 -9 -9 -6 -5 --------- Run | Yrd Mat Sub Rec Scr Fac Fac Levels Raised 13 | . 3 2 2 . 4 2 XP Earned 22725 | 3000 5495 2473 2999 349 6059 2350 XP Spent 19390 | 1850 4610 3800 3100 . 6030 . Upgrades 62 | 5 9 7 11 . 30 . Propulsion Slot 4 | 1 1 . 1 . 1 . Utility Slot 3 | 1 1 1 . . . . Weapon Slot 3 | 1 2 . . . . . Core Integrity 18 | . . . . . 18 . Heat Dissipation 13 | . 3 . 10 . . . Mass Support 1 | 1 . . . . . . Inventory Capacity 1 | 1 . . . . . . Sensor Range 9 | . . . . . 9 . Ranged Accuracy 4 | . 2 . . . 2 . Melee Accuracy 6 | . . 6 . . . . Protomatter Created 1691 | . 288 452 368 . 337 246 Integrity Restored 3069 | . 546 1405 584 . 339 195 Core 2398 | . 419 1167 335 . 282 195 Parts 671 | . 127 238 249 . 57 . Protomatter Decayed 512 | . 68 140 133 . 110 61 Game ------ Seed PortableHardcellCloak Manual? 0 Play Time 01:25:36 Cumulative 203.8 hours Start 2026.06.25 @ 19:09:24 End 2026.06.25 @ 20:48:51 Sessions 1 Manual Loads 0 Difficulty Rogue Special Mode Winter2019/RPGLIKE Game No. 97 Rogue 93 Adventurer 4 Explorer 0 Win Type - Total 7 Types 4/0/2/0/0/0/0/0/1/0 Lore% 73 Gallery% 52 Achievement% 44 Wizard Run 0 Options --------- Layout 0 ASCII 0 Keyboard 0 Movement Arrows Keybinds 0 Fullscreen 2 Font 32/SmallcapsGlow Map View 88x55 Zoom Use 0% Tactical HUD 1 Map Filters NONE Filters NONE Steam 1 RUN: fe534b18-5ae9-4ed0-9146-ba7e1cce1dd0